[Event "TUR-chT Superleague 2018"]
[Site "Ankara"]
[Date "2018.07.27"]
[Round "3"]
[White "Keskin, Elif"]
[Black "Sade, Defne"]
[Result "1/2-1/2"]
[ECO "D19"]
[WhiteElo "1719"]
[BlackElo "1954"]
[Annotator "NA"]
[PlyCount "73"]
[EventDate "2018.07.25"]
[EventType "team-tourn"]
[EventCountry "TUR"]
[SourceTitle "playchess.com"]
[Source "ChessBase"]
[SourceQuality "1"]
[TimeControl "40/5400+30:1800+30"]

1. d4 {[%emt 0:00:30]} d5 {[%emt 0:01:00]} 2. c4 {[%emt 0:00:30]} c6 {[%emt 0:00:30]} 3. Nf3 {[%emt 0:00:00]} Nf6 {[%emt 0:00:00]} 4. Nc3 {[%emt 0:00:00]} dxc4 {[%emt 0:00:00]} 5. a4 {[%emt 0:00:00]} Bf5 {[%emt 0:00:00]} 6. e3 {[%emt 0:00:00]} e6 {[%emt 0:00:00]} 7. Bxc4 {[%emt 0:00:30]} Bb4 {[%emt 0:00:30]} 8. O-O {[%emt 0:00:30]} O-O {[%emt 0:00:00]} 9. Qe2 {[%emt 0:00:30]} Nbd7 {[%emt 0:00:00]} 10. e4 {[%emt 0:01:30]} Bg6 {[%emt 0:00:30]} 11. Bd3 {[%emt 0:00:30]} Bh5 {[%emt 0:00:30]} 12. e5 {[%emt 0:01:30]} Nd5 {[%emt 0:00:30]} 13. Nxd5 {[%emt 0:00:30]} cxd5 {[%emt 0:00:30]} 14. Qe3 {[%emt 0:00:30]} Bg6 {[%emt 0:02:30]} 15. Ng5 {[%emt 0:01:30]} Re8 {[%emt 0:00:30]} 16. f4 {[%emt 0:01:30]} f5 {[%emt 0:05:30]} 17. g4 {[%emt 0:12:30]} fxg4 {[%emt 0:11:30]} 18. Nxe6 {[%emt 0:11:30]} Rxe6 {[%emt 0:01:30]} 19. f5 {[%emt 0:00:30]} Rxe5 {[%emt 0:05:30]} 20. Qf4 {[%emt 0:10:30]} Re8 {[%emt 0:22:30]} 21. fxg6 {[%emt 0:01:30]} Rf8 {[%emt 0:00:30]} 22. gxh7+ {[%emt 0:01:30]} Kh8 {[%emt 0:00:30]} 23. Qxg4 {[%emt 0:01:30]} Rxf1+ {[%emt 0:01:30]} 24. Kxf1 {[%emt 0:01:30]} Qe7 {[%emt 0:13:30]} 25. Bg5 {[%emt 0:07:30]} Nf6 {[%emt 0:05:30]} 26. Qh4 {[%emt 0:06:30]} Qe6 {[%emt 0:06:30]} 27. Bxf6 {[%emt 0:02:30]} Rf8 {[%emt 0:00:30]} 28. Kg2 {[%emt 0:02:30]} Rxf6 {[%emt 0:06:57]} 29. Rf1 {[%emt 0:04:30]} Rxf1 {[%emt 0:02:20]} 30. Kxf1 {[%emt 0:00:00]} Be7 {[%emt 0:05:33]} 31. Qf2 {[%emt 0:06:00]} Qh3+ {[%emt 0:03:11]} 32. Ke2 {[%emt 0:00:00]} Qg4+ {[%emt 0:00:41]} 33. Kd2 {[%emt 0:05:00]} Bf6 {[%emt 0:03:41]} 34. Qf5 {[%emt 0:04:21]} Qxf5 {[%emt 0:02:01]} 35. Bxf5 {[%emt 0:00:30]} Bxd4 {[%emt 0:00:00]} 36. b3 {[%emt 0:00:00]} Be5 {[%emt 0:00:35]} 37. Bg6 {[%emt 0:03:10]} 1/2-1/2

[Event "TUR-chT Superleague 2018"]
[Site "Ankara"]
[Date "2018.07.27"]
[Round "3"]
[White "Ozcan, Kaan"]
[Black "Sari, Yasin"]
[Result "0-1"]
[ECO "A41"]
[WhiteElo "1523"]
[BlackElo "2330"]
[Annotator "NA"]
[PlyCount "134"]
[EventDate "2018.07.25"]
[EventType "team-tourn"]
[EventCountry "TUR"]
[SourceTitle "playchess.com"]
[Source "ChessBase"]
[SourceQuality "1"]
[TimeControl "40/5400+30:1800+30"]

1. d4 d6 2. c4 e5 3. dxe5 dxe5 4. Qxd8+ Kxd8 5. Nc3 Be6 6. e3 Bb4 7. Bd2 Nd7 8. O-O-O c6 9. Nf3 f6 10. Ne4 Be7 11. Bc3 Kc7 12. Be2 Nh6 13. h3 Nf7 14. Rhg1 a5 15. g4 Nb6 16. Ned2 Na4 17. Kc2 Nxc3 18. Kxc3 a4 19. Ne4 b5 20. cxb5 cxb5 21. Bxb5 Rhb8 22. Bd3 Bxa2 23. Rc1 Bb4+ 24. Kc2 Kb6 25. Kd1 Rd8 26. Ke2 Rac8 27. Nfd2 Be6 28. Nc4+ Kb7 29. Ncd2 Be7 30. Rxc8 Rxc8 31. Ra1 Bd7 32. Bc4 Nd6 33. Bd5+ Kb8 34. Nxd6 Bxd6 35. Be4 g6 36. Kd1 f5 37. gxf5 gxf5 38. Bc2 Rg8 39. Ke2 Bb5+ 40. Bd3 Bd7 41. Bc2 {[%emt 1:50:30]} f4 {[%emt 1:53:00]} 42. exf4 {[%emt 0:00:30]} exf4 {[%emt 0:00:30]} 43. Bxh7 {[%emt 0:01:30]} Bb5+ {[%emt 0:05:30]} 44. Bd3 {[%emt 0:00:30]} Re8+ {[%emt 0:00:30]} 45. Kd1 {[%emt 0:03:30]} Bxd3 {[%emt 0:00:30]} 46. Rxa4 {[%emt 0:00:30]} f3 {[%emt 0:02:30]} 47. Rd4 {[%emt 0:02:30]} Be2+ {[%emt 0:00:30]} 48. Kc2 {[%emt 0:01:30]} Rc8+ {[%emt 0:02:01]} 49. Kb3 {[%emt 0:01:30]} Rc6 {[%emt 0:01:07]} 50. Re4 {[%emt 0:06:20]} Kb7 {[%emt 0:05:56]} 51. Nc4 {[%emt 0:03:34]} Bc7 {[%emt 0:01:50]} 52. Nd2 {[%emt 0:02:30]} Bd1+ {[%emt 0:01:53]} 53. Ka2 {[%emt 0:01:29]} Rc2 {[%emt 0:01:10]} 54. Rb4+ {[%emt 0:01:30]} Ka6 {[%emt 0:02:03]} 55. Ne4 {[%emt 0:02:18]} Bb6 {[%emt 0:00:18]} 56. Rb3 {[%emt 0:01:33]} Be2 {[%emt 0:04:47]} 57. Ra3+ {[%emt 0:01:34]} Kb7 {[%emt 0:00:12]} 58. Ng5 {[%emt 0:02:36]} Bc4+ {[%emt 0:01:58]} 59. Kb1 {[%emt 0:00:14]} Rxf2 {[%emt 0:00:26]} 60. Rxf3 {[%emt 0:01:30]} Rg2 {[%emt 0:00:21]} 61. h4 {[%emt 0:01:01]} Bd4 {[%emt 0:00:48]} 62. b3 {[%emt 0:01:05]} Be2 {[%emt 0:00:57]} 63. Rf7+ {[%emt 0:01:16]} Kb6 {[%emt 0:00:01]} 64. Re7 {[%emt 0:00:08]} Bd3+ {[%emt 0:01:20]} 65. Kc1 {[%emt 0:00:06]} Bc3 {[%emt 0:00:38]} 66. Nf3 {[%emt 0:01:16]} Ra2 {[%emt 0:00:15]} 67. Re6+ {[%emt 0:00:03]} Kc7 {[%emt 0:00:31]} 0-1

[Event "TUR-chT Superleague 2018"]
[Site "Ankara"]
[Date "2018.07.27"]
[Round "3"]
[White "Onbasi, Irem"]
[Black "Ozbay, Ece"]
[Result "0-1"]
[ECO "D13"]
[WhiteElo "1427"]
[BlackElo "2140"]
[Annotator "NA"]
[PlyCount "66"]
[EventDate "2018.07.25"]
[EventType "team-tourn"]
[EventCountry "TUR"]
[SourceTitle "playchess.com"]
[Source "ChessBase"]
[SourceQuality "1"]
[TimeControl "40/5400+30:1800+30"]

1. d4 {[%emt 0:00:30]} d5 {[%emt 0:01:00]} 2. c4 {[%emt 0:00:00]} c6 {[%emt 0:00:30]} 3. cxd5 {[%emt 0:00:00]} cxd5 {[%emt 0:00:30]} 4. Nc3 {[%emt 0:00:00]} Nf6 {[%emt 0:00:00]} 5. Nf3 {[%emt 0:00:00]} Nc6 {[%emt 0:03:00]} 6. Bf4 {[%emt 0:00:30]} e6 {[%emt 0:02:30]} 7. e3 {[%emt 0:01:30]} Bd6 {[%emt 0:04:30]} 8. Ne5 {[%emt 0:12:30]} a6 {[%emt 0:06:30]} 9. Nxc6 {[%emt 0:06:30]} bxc6 {[%emt 0:00:30]} 10. Bg3 {[%emt 0:07:30]} O-O {[%emt 0:05:30]} 11. Bd3 {[%emt 0:02:30]} c5 {[%emt 0:01:30]} 12. dxc5 {[%emt 0:08:30]} Bxc5 {[%emt 0:00:30]} 13. Qc2 {[%emt 0:03:30]} Bb7 {[%emt 0:06:30]} 14. Rd1 {[%emt 0:06:30]} Rc8 {[%emt 0:02:30]} 15. O-O {[%emt 0:01:30]} h6 {[%emt 0:22:30]} 16. Qe2 {[%emt 0:14:30]} Rc6 {[%emt 0:06:30]} 17. e4 {[%emt 0:08:30]} Qa8 {[%emt 0:09:30]} 18. exd5 {[%emt 0:04:49]} exd5 {[%emt 0:01:30]} 19. Bf5 {[%emt 0:01:51]} Re8 {[%emt 0:01:30]} 20. Qd3 {[%emt 0:03:14]} Ba7 {[%emt 0:07:59]} 21. Rfe1 {[%emt 0:03:40]} Rb6 {[%emt 0:02:47]} 22. Rxe8+ {[%emt 0:03:41]} Qxe8 {[%emt 0:00:39]} 23. b3 {[%emt 0:01:11]} g6 {[%emt 0:03:47]} 24. Bh3 {[%emt 0:00:19]} Rb4 {[%emt 0:00:23]} 25. Bd6 {[%emt 0:08:22]} Rd4 {[%emt 0:01:38]} 26. Qf3 {[%emt 0:00:25]} Rxd1+ {[%emt 0:01:04]} 27. Qxd1 {[%emt 0:00:05]} d4 {[%emt 0:00:00]} 28. Ne2 {[%emt 0:01:24]} Ne4 {[%emt 0:00:14]} 29. Bg3 {[%emt 0:00:00]} Nc3 {[%emt 0:01:42]} 30. Nxc3 {[%emt 0:00:32]} dxc3 {[%emt 0:00:02]} 31. Bf4 {[%emt 0:00:50]} c2 {[%emt 0:01:27]} 32. Qc1 {[%emt 0:00:27]} Qe2 {[%emt 0:00:30]} 33. Bd2 {[%emt 0:00:39]} Qd1+ {[%emt 0:00:14]} 0-1

[Event "TUR-chT Superleague 2018"]
[Site "Ankara"]
[Date "2018.07.28"]
[Round "4"]
[White "Rakhmanov, Aleksandr"]
[Black "Goganov, Alexey"]
[Result "1-0"]
[ECO "E51"]
[WhiteElo "2627"]
[BlackElo "2586"]
[Annotator "RC"]
[PlyCount "93"]
[EventDate "2018.07.25"]
[EventType "team-tourn"]
[EventCountry "TUR"]
[SourceTitle "playchess.com"]
[Source "ChessBase"]
[SourceQuality "1"]
[TimeControl "40/5400+30:1800+30"]

1. d4 {[%emt 0:00:30]} Nf6 {[%emt 0:01:00]} 2. c4 {[%emt 0:00:30]} e6 {[%emt 0:00:30]} 3. Nc3 {[%emt 0:00:00]} Bb4 {[%emt 0:00:00]} 4. e3 {[%emt 0:00:00]} O-O {[%emt 0:00:00]} 5. Nf3 {[%emt 0:00:00]} d5 {[%emt 0:00:30]} 6. Bd2 {[%emt 0:00:00]} c5 {[%emt 0:06:30]} 7. a3 {[%emt 0:00:30]} Bxc3 {[%emt 0:01:30]} 8. Bxc3 {[%emt 0:00:30]} cxd4 {[%emt 0:02:30]} 9. Nxd4 {[%emt 0:04:30]} Ne4 {[%emt 0:02:30]} 10. Rc1 {[%emt 0:08:30]} Nxc3 {[%emt 0:08:30]} 11. Rxc3 {[%emt 0:00:30]} dxc4 {[%emt 0:05:30]} 12. Bxc4 {[%emt 0:00:30]} Bd7 {[%emt 0:00:30]} 13. O-O {[%emt 0:00:30]} Nc6 {[%emt 0:00:30]} 14. Nf3 {[%emt 0:00:00]} Qe7 {[%emt 0:00:30]} 15. Qc2 {[%emt 0:01:00]} Rfd8 {[%emt 0:00:30]} 16. Bd3 {[%emt 0:00:30]} h6 {[%emt 0:01:30]} 17. Rc1 {[%emt 0:00:30]} Qf6 {[%emt 0:01:30]} 18. Bh7+ {[%emt 0:00:30]} Kh8 {[%emt 0:00:30]} 19. Be4 {[%emt 0:00:00]} Be8 {[%emt 0:01:30]} 20. Rc5 {[%emt 0:21:00]} Rd6 {[%emt 0:02:30]} 21. b4 {[%emt 0:00:30]} Rad8 {[%emt 0:03:30]} 22. h3 {[%emt 0:17:30]} Kg8 {[%emt 0:00:30]} 23. Kh2 {[%emt 0:06:30]} a6 {[%emt 0:02:30]} 24. Qe2 {[%emt 0:02:30]} g6 {[%emt 0:06:30]} 25. Qc2 {[%emt 0:06:30]} Kg7 {[%emt 0:02:30]} 26. Qb1 {[%emt 0:04:30]} Rb8 {[%emt 0:02:30]} 27. h4 {[%emt 0:03:30]} Rbd8 {[%emt 0:06:30]} 28. g4 {[%emt 0:04:49]} Qe7 {[%emt 0:05:30]} 29. g5 {[%emt 0:00:25]} h5 {[%emt 0:05:30]} 30. Kg2 {[%emt 0:06:35]} Kg8 {[%emt 0:00:30]} 31. a4 {[%emt 0:01:25]} Nb8 {[%emt 0:02:30]} 32. b5 {[%emt 0:04:06]} axb5 {[%emt 0:00:30]} 33. axb5 {[%emt 0:00:07]} b6 {[%emt 0:01:30]} 34. Rc7 {[%emt 0:00:28]} R6d7 {[%emt 0:00:30]} 35. R7c3 {[%emt 0:04:00]} Ra7 {[%emt 0:00:30]} 36. Ne5 {[%emt 0:01:08]} Ra5 {[%emt 0:10:23]} 37. Rc7 {[%emt 0:01:41]} Qd6 {[%emt 0:00:05]} 38. Nxf7 {[%emt 0:01:30]} Bxf7 {[%emt 0:00:30]} 39. Bxg6 {[%emt 0:00:13]} Nd7 {[%emt 0:01:46]} 40. Bxf7+ {[%emt 0:01:43]} Kxf7 {[%emt 0:00:46]} 41. Rd1 {[%emt 0:17:01]} Qxc7 {[%emt 0:01:30]} 42. Qh7+ {[%emt 0:00:54]} Ke8 {[%emt 0:00:30]} 43. Qxh5+ {[%emt 0:00:44]} Ke7 {[%emt 0:00:30]} 44. Qh7+ {[%emt 0:00:00]} Ke8 {[%emt 0:00:30]} 45. g6 {[%emt 0:00:11]} Qb7+ {[%emt 0:00:00]} 46. Kg3 {[%emt 0:00:48]} Qb8+ {[%emt 0:00:00]} 47. Kh3 {[%emt 0:02:32]} 1-0

[Event "TUR-chT Superleague 2018"]
[Site "Ankara"]
[Date "2018.07.28"]
[Round "4"]
[White "Mchedlishvili, Mikheil"]
[Black "Erturan, Yakup"]
[Result "1/2-1/2"]
[ECO "A38"]
[WhiteElo "2608"]
[BlackElo "2378"]
[Annotator "ChessBase"]
[PlyCount "134"]
[EventDate "2018.07.25"]
[EventType "team-tourn"]
[EventCountry "TUR"]
[SourceTitle "playchess.com"]
[Source "ChessBase"]
[SourceQuality "1"]
[TimeControl "40/5400+30:1800+30"]

1. c4 {[%emt 0:00:30]} c5 {[%emt 0:01:00]} 2. Nf3 {[%emt 0:00:30]} Nc6 {[%emt 0:00:30]} 3. Nc3 {[%emt 0:00:30]} Nf6 {[%emt 0:00:30]} 4. g3 {[%emt 0:02:30]} g6 {[%emt 0:01:30]} 5. d4 {[%emt 0:01:30]} cxd4 {[%emt 0:00:30]} 6. Nxd4 {[%emt 0:00:30]} d6 {[%emt 0:01:30]} 7. Bg2 {[%emt 0:07:30]} Bd7 {[%emt 0:00:30]} 8. O-O {[%emt 0:02:30]} Bg7 {[%emt 0:00:30]} 9. Nc2 {[%emt 0:01:30]} O-O {[%emt 0:00:30]} 10. b3 {[%emt 0:01:30]} a6 {[%emt 0:05:30]} 11. a4 {[%emt 0:00:30]} Rb8 {[%emt 0:05:30]} 12. Bd2 {[%emt 0:04:30]} Qc8 {[%emt 0:15:30]} 13. Re1 {[%emt 0:02:30]} Bh3 {[%emt 0:01:30]} 14. Bh1 {[%emt 0:01:30]} Nd7 {[%emt 0:10:30]} 15. Rb1 {[%emt 0:04:30]} Re8 {[%emt 0:04:30]} 16. Nd5 {[%emt 0:01:30]} Nc5 {[%emt 0:04:30]} 17. a5 {[%emt 0:03:30]} Bf5 {[%emt 0:05:30]} 18. Nb6 {[%emt 0:10:30]} Qe6 {[%emt 0:11:30]} 19. e4 {[%emt 0:12:30]} Bg4 {[%emt 0:01:30]} 20. f3 {[%emt 0:02:30]} Bh3 {[%emt 0:00:30]} 21. Re3 {[%emt 0:07:30]} Nd4 {[%emt 0:07:30]} 22. Bc3 {[%emt 0:02:30]} Nxc2 {[%emt 0:00:53]} 23. Qxc2 {[%emt 0:00:30]} Bxc3 {[%emt 0:00:26]} 24. Qxc3 {[%emt 0:00:30]} Qe5 {[%emt 0:03:44]} 25. Qxe5 {[%emt 0:14:07]} dxe5 {[%emt 0:00:30]} 26. b4 {[%emt 0:00:00]} Nd7 {[%emt 0:01:37]} 27. Rd3 {[%emt 0:07:22]} Nxb6 {[%emt 0:03:13]} 28. axb6 {[%emt 0:00:30]} Be6 {[%emt 0:02:05]} 29. c5 {[%emt 0:00:15]} Rec8 {[%emt 0:01:39]} 30. Rc1 {[%emt 0:00:32]} Ra8 {[%emt 0:00:53]} 31. Ra3 {[%emt 0:01:23]} Bd7 {[%emt 0:00:32]} 32. Bg2 {[%emt 0:00:22]} Bc6 {[%emt 0:00:43]} 33. Rd1 {[%emt 0:06:36]} Rd8 {[%emt 0:01:16]} 34. Rad3 {[%emt 0:00:35]} Rdc8 {[%emt 0:00:47]} 35. Ra3 {[%emt 0:00:45]} Rd8 {[%emt 0:00:21]} 36. Rad3 {[%emt 0:00:48]} Rdc8 {[%emt 0:00:06]} 37. Bh3 {[%emt 0:00:26]} e6 {[%emt 0:00:10]} 38. Ra3 {[%emt 0:00:18]} Rd8 {[%emt 0:00:22]} 39. Rad3 {[%emt 0:00:38]} Rdc8 {[%emt 0:00:16]} 40. Ra1 {[%emt 0:00:54]} Rd8 {[%emt 0:00:57]} 41. Rdd1 {[%emt 0:02:59]} Kf8 {[%emt 0:04:30]} 42. Bf1 {[%emt 0:00:30]} Rxd1 {[%emt 0:09:30]} 43. Rxd1 {[%emt 0:00:30]} Ke7 {[%emt 0:00:30]} 44. Kf2 {[%emt 0:00:00]} Rd8 {[%emt 0:00:00]} 45. Rxd8 {[%emt 0:02:00]} Kxd8 {[%emt 0:00:00]} 46. Ke3 {[%emt 0:03:30]} Bb5 {[%emt 0:08:18]} 47. Bg2 {[%emt 0:00:30]} f6 {[%emt 0:01:44]} 48. Bh3 {[%emt 0:01:30]} Ke7 {[%emt 0:02:57]} 49. Kd2 {[%emt 0:01:30]} Bc6 {[%emt 0:01:07]} 50. Bf1 {[%emt 0:00:30]} Kd7 {[%emt 0:01:48]} 51. Bc4 {[%emt 0:01:30]} Bb5 {[%emt 0:00:56]} 52. Bb3 {[%emt 0:00:30]} Bc6 {[%emt 0:00:14]} 53. Ke3 {[%emt 0:01:30]} Bb5 {[%emt 0:00:49]} 54. Kd2 {[%emt 0:01:29]} Bc6 {[%emt 0:00:30]} 55. Kc3 {[%emt 0:00:00]} Bb5 {[%emt 0:04:05]} 56. f4 {[%emt 0:00:28]} Bc6 {[%emt 0:02:11]} 57. fxe5 {[%emt 0:02:11]} fxe5 {[%emt 0:00:21]} 58. Bc2 {[%emt 0:00:41]} Bb5 {[%emt 0:00:45]} 59. Bb1 {[%emt 0:00:56]} Bc6 {[%emt 0:00:19]} 60. Bd3 {[%emt 0:04:20]} Bb5 {[%emt 0:00:07]} 61. Bc4 {[%emt 0:02:04]} Bc6 {[%emt 0:00:32]} 62. b5 {[%emt 0:01:12]} axb5 {[%emt 0:00:58]} 63. Bd3 {[%emt 0:00:06]} Kd8 {[%emt 0:00:56]} 64. Kb4 {[%emt 0:00:16]} Kc8 {[%emt 0:00:00]} 65. Ka5 {[%emt 0:03:24]} Kd8 {[%emt 0:01:58]} 66. h4 {[%emt 0:00:30]} h6 {[%emt 0:01:18]} 67. Kb4 {[%emt 0:05:33]} Kc8 {[%emt 0:00:07]} 1/2-1/2

[Event "TUR-chT Superleague 2018"]
[Site "Ankara"]
[Date "2018.07.28"]
[Round "4"]
[White "Can, Emre"]
[Black "Erdogdu, Mert"]
[Result "1-0"]
[ECO "D07"]
[WhiteElo "2605"]
[BlackElo "2411"]
[Annotator "ChessBase"]
[PlyCount "53"]
[EventDate "2018.07.25"]
[EventType "team-tourn"]
[EventCountry "TUR"]
[SourceTitle "playchess.com"]
[Source "ChessBase"]
[SourceQuality "1"]
[TimeControl "40/5400+30:1800+30"]

1. d4 {[%emt 0:00:30]} d5 {[%emt 0:01:00]} 2. Nf3 {[%emt 0:00:30]} Nf6 {[%emt 0:00:00]} 3. c4 {[%emt 0:00:00]} dxc4 {[%emt 0:00:00]} 4. e3 {[%emt 0:01:00]} Bg4 {[%emt 0:01:30]} 5. Bxc4 {[%emt 0:00:30]} e6 {[%emt 0:01:30]} 6. Nc3 {[%emt 0:00:30]} Nc6 {[%emt 0:02:30]} 7. Bb5 {[%emt 0:03:30]} Bd6 {[%emt 0:06:30]} 8. e4 {[%emt 0:04:30]} Bb4 {[%emt 0:07:30]} 9. Qa4 {[%emt 0:00:30]} Bxf3 {[%emt 0:06:30]} 10. Bxc6+ {[%emt 0:06:30]} bxc6 {[%emt 0:00:30]} 11. Qxc6+ {[%emt 0:01:30]} Ke7 {[%emt 0:08:30]} 12. gxf3 {[%emt 0:00:30]} Qxd4 {[%emt 0:00:30]} 13. Qxc7+ {[%emt 0:08:30]} Nd7 {[%emt 0:04:30]} 14. Bg5+ {[%emt 0:04:30]} f6 {[%emt 0:01:30]} 15. Rd1 {[%emt 0:00:30]} Bxc3+ {[%emt 0:11:30]} 16. bxc3 {[%emt 0:00:30]} Rhc8 {[%emt 0:00:30]} 17. Qg3 {[%emt 0:09:30]} Qe5 {[%emt 0:26:15]} 18. Bf4 {[%emt 0:00:30]} Qxc3+ {[%emt 0:00:30]} 19. Bd2 {[%emt 0:00:30]} Qc4 {[%emt 0:00:14]} 20. Qxg7+ {[%emt 0:00:30]} Ke8 {[%emt 0:00:03]} 21. Qg8+ {[%emt 0:12:30]} Nf8 {[%emt 0:01:48]} 22. Bh6 {[%emt 0:01:30]} Qb4+ {[%emt 0:00:36]} 23. Kf1 {[%emt 0:00:30]} Rc6 {[%emt 0:07:49]} 24. Rg1 {[%emt 0:02:30]} Rac8 {[%emt 0:01:57]} 25. Rg7 {[%emt 0:01:30]} Qc4+ {[%emt 0:03:56]} 26. Kg2 {[%emt 0:00:30]} e5 {[%emt 0:00:47]} 27. Rd5 {[%emt 0:00:30]} 1-0

[Event "TUR-chT Superleague 2018"]
[Site "Ankara"]
[Date "2018.07.28"]
[Round "4"]
[White "Sanal, Vahap"]
[Black "Yilmaz, Goktan"]
[Result "1-0"]
[ECO "C93"]
[WhiteElo "2515"]
[BlackElo "2233"]
[Annotator "RC"]
[PlyCount "93"]
[EventDate "2018.07.25"]
[EventType "team-tourn"]
[EventCountry "TUR"]
[SourceTitle "playchess.com"]
[Source "ChessBase"]
[SourceQuality "1"]
[TimeControl "40/5400+30:1800+30"]

1. e4 {[%emt 0:00:30]} e5 {[%emt 0:01:00]} 2. Nf3 {[%emt 0:00:00]} Nc6 {[%emt 0:00:30]} 3. Bb5 {[%emt 0:00:00]} a6 {[%emt 0:00:30]} 4. Ba4 {[%emt 0:00:30]} Nf6 {[%emt 0:00:00]} 5. O-O {[%emt 0:00:30]} Be7 {[%emt 0:00:00]} 6. Re1 {[%emt 0:00:00]} b5 {[%emt 0:00:30]} 7. Bb3 {[%emt 0:00:00]} d6 {[%emt 0:00:30]} 8. c3 {[%emt 0:00:30]} O-O {[%emt 0:00:30]} 9. h3 {[%emt 0:00:00]} Bb7 {[%emt 0:00:00]} 10. d4 {[%emt 0:00:00]} h6 {[%emt 0:00:00]} 11. a3 {[%emt 0:02:30]} Re8 {[%emt 0:02:30]} 12. Nbd2 {[%emt 0:02:30]} Bf8 {[%emt 0:02:30]} 13. Bc2 {[%emt 0:03:30]} Nb8 {[%emt 0:03:30]} 14. b4 {[%emt 0:01:30]} Nbd7 {[%emt 0:03:30]} 15. Bb2 {[%emt 0:04:30]} c5 {[%emt 0:21:30]} 16. bxc5 {[%emt 0:05:30]} dxc5 {[%emt 0:00:30]} 17. dxe5 {[%emt 0:00:00]} Nxe5 {[%emt 0:03:30]} 18. Nxe5 {[%emt 0:00:00]} Rxe5 {[%emt 0:00:30]} 19. c4 {[%emt 0:00:30]} Re8 {[%emt 0:01:30]} 20. Qe2 {[%emt 0:05:30]} Nd7 {[%emt 0:07:30]} 21. cxb5 {[%emt 0:02:30]} axb5 {[%emt 0:00:30]} 22. Qxb5 {[%emt 0:00:30]} Rb8 {[%emt 0:11:30]} 23. Qd3 {[%emt 0:02:30]} Ba6 {[%emt 0:01:30]} 24. Qc3 {[%emt 0:08:30]} Ne5 {[%emt 0:00:30]} 25. Red1 {[%emt 0:12:30]} Be2 {[%emt 0:04:30]} 26. Nc4 {[%emt 0:13:30]} Bxd1 {[%emt 0:01:30]} 27. Rxd1 {[%emt 0:00:00]} Qc7 {[%emt 0:00:30]} 28. Nxe5 {[%emt 0:01:00]} Rxb2 {[%emt 0:00:30]} 29. Qxb2 {[%emt 0:00:00]} Qxe5 {[%emt 0:00:30]} 30. Qxe5 {[%emt 0:09:00]} Rxe5 {[%emt 0:00:30]} 31. Rd8 {[%emt 0:00:00]} g5 {[%emt 0:03:30]} 32. a4 {[%emt 0:01:00]} c4 {[%emt 0:03:30]} 33. Kf1 {[%emt 0:00:30]} Kg7 {[%emt 0:02:30]} 34. Ke2 {[%emt 0:02:30]} Bc5 {[%emt 0:09:04]} 35. g3 {[%emt 0:02:30]} Bb6 {[%emt 0:02:36]} 36. Rb8 {[%emt 0:03:30]} Bd4 {[%emt 0:03:33]} 37. Rc8 {[%emt 0:01:23]} Rc5 {[%emt 0:01:25]} 38. Rd8 {[%emt 0:00:10]} Bf6 {[%emt 0:03:21]} 39. Rd7 {[%emt 0:00:43]} Rc6 {[%emt 0:03:49]} 40. f4 {[%emt 0:00:00]} Bc3 {[%emt 0:01:42]} 41. e5 {[%emt 0:04:14]} Kf8 {[%emt 0:06:30]} 42. Be4 {[%emt 0:01:30]} Ra6 {[%emt 0:05:30]} 43. Bd5 {[%emt 0:01:30]} Rxa4 {[%emt 0:05:10]} 44. Rxf7+ {[%emt 0:02:30]} Ke8 {[%emt 0:00:06]} 45. e6 {[%emt 0:00:30]} Ra3 {[%emt 0:01:53]} 46. Bc6+ {[%emt 0:00:30]} Kd8 {[%emt 0:00:00]} 47. e7+ {[%emt 0:00:30]} 1-0

[Event "TUR-chT Superleague 2018"]
[Site "Ankara"]
[Date "2018.07.28"]
[Round "4"]
[White "Triapishko, Aleksandr"]
[Black "Tukhaev, Adam"]
[Result "1/2-1/2"]
[ECO "B07"]
[WhiteElo "2509"]
[BlackElo "2542"]
[Annotator "ChessBase"]
[PlyCount "65"]
[EventDate "2018.07.25"]
[EventType "team-tourn"]
[EventCountry "TUR"]
[SourceTitle "playchess.com"]
[Source "ChessBase"]
[SourceQuality "1"]
[TimeControl "40/5400+30:1800+30"]

1. e4 {[%emt 0:00:30]} d6 {[%emt 0:01:00]} 2. d4 {[%emt 0:00:30]} Nf6 {[%emt 0:00:00]} 3. Nc3 {[%emt 0:00:30]} g6 {[%emt 0:00:00]} 4. Be3 {[%emt 0:00:30]} Bg7 {[%emt 0:00:30]} 5. Qd2 {[%emt 0:00:30]} Nc6 {[%emt 0:04:30]} 6. h3 {[%emt 0:11:30]} O-O {[%emt 0:10:30]} 7. O-O-O {[%emt 0:10:30]} e5 {[%emt 0:18:30]} 8. dxe5 {[%emt 0:08:30]} dxe5 {[%emt 0:02:30]} 9. Qxd8 {[%emt 0:08:30]} Rxd8 {[%emt 0:00:30]} 10. Rxd8+ {[%emt 0:00:30]} Nxd8 {[%emt 0:00:30]} 11. Nf3 {[%emt 0:00:30]} b6 {[%emt 0:15:30]} 12. Nxe5 {[%emt 0:17:30]} Bb7 {[%emt 0:02:30]} 13. Bd3 {[%emt 0:08:30]} Nxe4 {[%emt 0:02:30]} 14. Bxe4 {[%emt 0:00:30]} Bxe4 {[%emt 0:13:30]} 15. Nxe4 {[%emt 0:00:30]} Bxe5 {[%emt 0:00:00]} 16. Ng5 {[%emt 0:03:30]} Nc6 {[%emt 0:05:00]} 17. Rd1 {[%emt 0:01:30]} Rd8 {[%emt 0:02:01]} 18. c3 {[%emt 0:00:30]} Rxd1+ {[%emt 0:02:00]} 19. Kxd1 {[%emt 0:00:30]} f6 {[%emt 0:04:17]} 20. Ne4 {[%emt 0:03:30]} f5 {[%emt 0:05:31]} 21. Ng5 {[%emt 0:00:30]} Bd6 {[%emt 0:00:21]} 22. Ke2 {[%emt 0:00:30]} h6 {[%emt 0:02:17]} 23. Nf3 {[%emt 0:01:30]} g5 {[%emt 0:00:04]} 24. h4 {[%emt 0:07:42]} g4 {[%emt 0:02:47]} 25. Ne1 {[%emt 0:00:05]} Kg7 {[%emt 0:03:32]} 26. Nd3 {[%emt 0:01:04]} Ne5 {[%emt 0:00:59]} 27. Bd4 {[%emt 0:11:14]} Kf6 {[%emt 0:00:04]} 28. b4 {[%emt 0:00:28]} Ke6 {[%emt 0:00:30]} 29. Nf4+ {[%emt 0:00:30]} Kf7 {[%emt 0:00:00]} 30. Be3 {[%emt 0:00:51]} Ng6 {[%emt 0:01:19]} 31. Nxg6 {[%emt 0:01:03]} Kxg6 {[%emt 0:00:03]} 32. f4 {[%emt 0:00:45]} h5 {[%emt 0:00:55]} 33. g3 {[%emt 0:00:25]} 1/2-1/2